[Event "Lilla Elite Hotels Open 2024"]
[Site "Elite Stadshotellet, Kungsgatan 6, Vaxjo, Sweden"]
[Date "2024.02.09"]
[Round "1.1"]
[White "Martin, Leopold"]
[Black "Lyngsjo, Luke"]
[Result "0-1"]
[TimeControl "15 minutes + 5 seconds per move from move one (Round 1 - 4) / 90 minutes + 30 seconds per move from move one (Round 5 - 8)"]
[WhiteFideId "1746308"]
[BlackFideId "1755811"]
[WhiteElo "1282"]
[BlackElo "1587"]

1. e4 {[%clk 00:15:06]} {[%emt 00:00:03]} e5 {[%clk 00:15:08]} {[%emt
00:00:03]} 2. Nf3 {[%clk 00:15:09]} {[%emt 00:00:02]} Nf6 {[%clk 00:15:12]}
{[%emt 00:00:02]} 3. Nc3 {[%clk 00:15:09]} {[%emt 00:00:06]} Bb4 {[%clk
00:15:14]} {[%emt 00:00:02]} 4. Bc4 {[%clk 00:14:47]} {[%emt 00:00:26]} Bxc3
{[%clk 00:15:15]} {[%emt 00:00:04]} 5. bxc3 {[%clk 00:14:38]} {[%emt 00:00:15]}
d6 {[%clk 00:15:16]} {[%emt 00:00:05]} 6. d3 {[%clk 00:14:20]} {[%emt
00:00:22]} Bg4 {[%clk 00:14:53]} {[%emt 00:00:28]} 7. Bg5 {[%clk 00:14:01]}
{[%emt 00:00:24]} Nbd7 {[%clk 00:13:57]} {[%emt 00:01:01]} 8. d4 {[%clk
00:13:19]} {[%emt 00:00:47]} h6 {[%clk 00:13:35]} {[%emt 00:00:28]} 9. dxe5
{[%clk 00:11:55]} {[%emt 00:01:29]} Nxe5 {[%clk 00:13:25]} {[%emt 00:00:15]} 10.
Bxf6 {[%emt 00:00:28]} Qxf6 {[%clk 00:13:25]} {[%emt 00:00:02]} 11. Be2 {[%clk
00:11:08]} {[%emt 00:00:32]} Nxf3+ {[%clk 00:13:17]} {[%emt 00:00:13]} 12. gxf3
{[%clk 00:09:54]} {[%emt 00:01:19]} Qxc3+ {[%clk 00:13:18]} {[%emt 00:00:03]}
13. Kf1 {[%clk 00:09:40]} {[%emt 00:00:19]} Bh3+ {[%clk 00:13:20]} {[%emt
00:00:03]} 14. Kg1 {[%clk 00:09:36]} {[%emt 00:00:10]} Qf6 {[%clk 00:13:21]}
{[%emt 00:00:05]} 15. Bf1 {[%clk 00:08:38]} {[%emt 00:01:03]} Qg5+ {[%clk
00:13:22]} {[%emt 00:00:03]} 16. Bg2 {[%clk 00:08:39]} {[%emt 00:00:04]} Qxg2#
{[%clk 00:13:24]} {[%emt 00:00:02]} 0-1

[Event "Lilla Elite Hotels Open 2024"]
[Site "Elite Stadshotellet, Kungsgatan 6, Vaxjo, Sweden"]
[Date "2024.02.09"]
[Round "1.2"]
[White "Johansson, Sigge"]
[Black "Nilsson, Viktor"]
[Result "1-0"]
[TimeControl "15 minutes + 5 seconds per move from move one (Round 1 - 4) / 90 minutes + 30 seconds per move from move one (Round 5 - 8)"]
[WhiteFideId "1742612"]
[BlackFideId "1756460"]
[WhiteElo "1577"]
[BlackElo "1279"]

1. e4 {[%clk 00:15:07]} {[%emt 00:00:02]} e5 {[%clk 00:15:06]} {[%emt
00:00:05]} 2. Nf3 {[%clk 00:15:08]} {[%emt 00:00:03]} Nc6 {[%clk 00:15:10]}
{[%emt 00:00:02]} 3. Bc4 {[%clk 00:15:10]} {[%emt 00:00:02]} d6 {[%clk
00:15:06]} {[%emt 00:00:09]} 4. c3 {[%clk 00:15:06]} {[%emt 00:00:08]} Nce7
{[%clk 00:14:42]} {[%emt 00:00:30]} 5. d4 {[%clk 00:14:20]} {[%emt 00:00:51]}
Be6 {[%clk 00:14:14]} {[%emt 00:00:34]} 6. Bxe6 {[%clk 00:13:42]} {[%emt
00:00:42]} fxe6 {[%clk 00:14:17]} {[%emt 00:00:02]} 7. dxe5 {[%clk 00:13:40]}
{[%emt 00:00:07]} d5 {[%clk 00:14:20]} {[%emt 00:00:02]} 8. O-O {[%clk
00:11:59]} {[%emt 00:01:46]} Qd7 {[%clk 00:12:56]} {[%emt 00:01:29]} 9. exd5
{[%clk 00:11:38]} {[%emt 00:00:26]} Nxd5 {[%clk 00:12:35]} {[%emt 00:00:26]} 10.
c4 {[%clk 00:11:32]} {[%emt 00:00:11]} Nb4 {[%clk 00:12:04]} {[%emt 00:00:35]}
11. Qxd7+ {[%clk 00:11:29]} {[%emt 00:00:08]} Kxd7 {[%clk 00:12:07]} {[%emt
00:00:02]} 12. Rd1+ {[%clk 00:11:23]} {[%emt 00:00:11]} Ke7 {[%clk 00:12:11]}
{[%emt 00:00:02]} 13. Nd4 {[%clk 00:11:24]} {[%emt 00:00:03]} Rd8 {[%clk
00:12:07]} {[%emt 00:00:09]} 14. Bg5+ {[%clk 00:11:03]} {[%emt 00:00:26]} Nf6
{[%clk 00:12:09]} {[%emt 00:00:03]} 15. exf6+ {[%clk 00:11:06]} {[%emt
00:00:03]} gxf6 {[%clk 00:12:12]} {[%emt 00:00:01]} 16. Bxf6+ {[%clk 00:09:42]}
{[%emt 00:01:29]} Kxf6 {[%clk 00:11:54]} {[%emt 00:00:23]} 17. Na3 {[%clk
00:09:34]} {[%emt 00:00:13]} e5 {[%clk 00:11:29]} {[%emt 00:00:31]} 18. Ndc2
{[%clk 00:09:11]} {[%emt 00:00:27]} Nxc2 {[%clk 00:10:46]} {[%emt 00:00:47]} 19.
Nxc2 {[%clk 00:09:07]} {[%emt 00:00:10]} Rxd1+ {[%clk 00:10:49]} {[%emt
00:00:02]} 20. Rxd1 {[%clk 00:09:10]} Bc5 {[%clk 00:10:53]} 21. b4 {[%clk
00:08:36]} {[%emt 00:00:40]} Bd6 {[%clk 00:10:50]} {[%emt 00:00:08]} 22. c5
{[%clk 00:08:40]} Be7 {[%clk 00:10:18]} {[%emt 00:00:37]} 23. Kf1 {[%clk
00:08:32]} {[%emt 00:00:13]} b6 {[%clk 00:10:17]} {[%emt 00:00:06]} 24. cxb6
{[%clk 00:08:29]} {[%emt 00:00:08]} axb6 {[%clk 00:10:21]} {[%emt 00:00:01]} 25.
Ne3 {[%clk 00:07:57]} {[%emt 00:00:36]} Ra8 {[%clk 00:09:49]} {[%emt 00:00:37]}
26. Rd2 {[%clk 00:07:46]} {[%emt 00:00:16]} Kf7 {[%clk 00:09:38]} {[%emt
00:00:16]} 27. Nd5 {[%clk 00:07:36]} {[%emt 00:00:15]} Bd6 {[%clk 00:08:57]}
{[%emt 00:00:46]} 28. Rc2 {[%clk 00:07:25]} {[%emt 00:00:14]} Rc8 {[%clk
00:08:26]} {[%emt 00:00:39]} 29. Nxb6 {[%clk 00:07:12]} {[%emt 00:00:18]} Rb8
{[%clk 00:07:15]} {[%emt 00:01:16]} 30. Nd5 {[%clk 00:07:15]} Ke6 {[%clk
00:06:56]} {[%emt 00:00:24]} 31. Nxc7+ {[%clk 00:07:06]} {[%emt 00:00:14]} Bxc7
{[%clk 00:06:59]} {[%emt 00:00:03]} 32. Rxc7 {[%clk 00:07:09]} {[%emt
00:00:01]} Rxb4 {[%clk 00:06:52]} {[%emt 00:00:12]} 33. Rxh7 {[%clk 00:07:11]}
{[%emt 00:00:03]} Rb1+ {[%clk 00:06:55]} {[%emt 00:00:02]} 34. Ke2 {[%clk
00:07:14]} {[%emt 00:00:02]} Rb2+ {[%clk 00:06:59]} {[%emt 00:00:01]} 35. Kf3
{[%clk 00:07:18]} {[%emt 00:00:02]} Rxa2 {[%clk 00:07:02]} {[%emt 00:00:02]} 36.
Rh8 {[%clk 00:06:07]} {[%emt 00:01:15]} Kf7 {[%clk 00:06:58]} {[%emt 00:00:09]}
37. Rb8 {[%clk 00:05:40]} {[%emt 00:00:31]} Ra3+ {[%clk 00:07:01]} {[%emt
00:00:03]} 38. Kg4 {[%clk 00:05:41]} {[%emt 00:00:04]} Ra4+ {[%clk 00:07:04]}
{[%emt 00:00:02]} 39. Kg3 {[%clk 00:05:44]} {[%emt 00:00:02]} Ra3+ {[%clk
00:07:08]} {[%emt 00:00:01]} 40. f3 {[%clk 00:05:48]} {[%emt 00:00:01]} Kg6
{[%clk 00:06:59]} {[%emt 00:00:13]} 41. Rb4 {[%clk 00:05:39]} {[%emt 00:00:13]}
Kf5 {[%clk 00:06:51]} {[%emt 00:00:16]} 42. Kh4 {[%clk 00:04:46]} {[%emt
00:00:58]} Rd3 {[%clk 00:06:54]} {[%emt 00:00:02]} 43. g4+ {[%clk 00:04:44]}
{[%emt 00:00:06]} Ke6 {[%clk 00:06:58]} 44. Rb6+ {[%clk 00:04:47]} {[%emt
00:00:03]} Kd5 {[%clk 00:07:02]} 45. Rf6 {[%clk 00:04:34]} {[%emt 00:00:13]}
Rd2 {[%clk 00:06:54]} {[%emt 00:00:17]} 46. h3 {[%clk 00:04:37]} {[%emt
00:00:02]} Rg2 {[%clk 00:06:57]} {[%emt 00:00:01]} 47. g5 {[%clk 00:04:36]}
{[%emt 00:00:06]} Rf2 {[%clk 00:06:54]} {[%emt 00:00:08]} 48. Kh5 {[%clk
00:04:06]} {[%emt 00:00:36]} Rf1 {[%clk 00:06:53]} {[%emt 00:00:06]} 49. Kg6
{[%clk 00:04:05]} {[%emt 00:00:05]} Rh1 {[%clk 00:06:55]} {[%emt 00:00:04]} 50.
Kf7 {[%clk 00:04:04]} {[%emt 00:00:07]} Rxh3 {[%clk 00:06:58]} {[%emt
00:00:02]} 51. g6 {[%clk 00:04:04]} {[%emt 00:00:04]} Rh8 {[%clk 00:06:52]}
{[%emt 00:00:11]} 52. g7 {[%clk 00:04:04]} {[%emt 00:00:05]} Ra8 {[%clk
00:06:55]} {[%emt 00:00:01]} 53. g8=Q {[%clk 00:04:04]} {[%emt 00:00:05]} Rxg8
{[%clk 00:06:59]} {[%emt 00:00:02]} 54. Kxg8 {[%clk 00:04:08]} {[%emt
00:00:02]} 1-0

[Event "Lilla Elite Hotels Open 2024"]
[Site "Elite Stadshotellet, Kungsgatan 6, Vaxjo, Sweden"]
[Date "2024.02.09"]
[Round "2.1"]
[White "Lyngsjo, Luke"]
[Black "Bodin, Bjorn"]
[Result "1-0"]
[TimeControl "15 minutes + 5 seconds per move from move one (Round 1 - 4) / 90 minutes + 30 seconds per move from move one (Round 5 - 8)"]
[WhiteFideId "1755811"]
[BlackFideId "1773747"]
[WhiteElo "1587"]
[BlackElo "1376"]

1. e4 {[%clk 00:15:08]} {[%emt 00:00:02]} c5 {[%clk 00:15:08]} {[%emt
00:00:02]} 2. Nf3 {[%clk 00:15:11]} {[%emt 00:00:02]} e6 {[%clk 00:15:06]}
{[%emt 00:00:08]} 3. c3 {[%clk 00:15:13]} {[%emt 00:00:03]} d5 {[%clk
00:15:09]} {[%emt 00:00:02]} 4. exd5 {[%clk 00:14:50]} {[%emt 00:00:28]} Qxd5
{[%clk 00:15:11]} {[%emt 00:00:02]} 5. Bb5+ {[%clk 00:14:27]} {[%emt 00:00:28]}
Bd7 {[%clk 00:14:54]} {[%emt 00:00:23]} 6. Bxd7+ {[%clk 00:14:17]} {[%emt
00:00:14]} Nxd7 {[%clk 00:14:46]} {[%emt 00:00:14]} 7. Qe2 {[%clk 00:14:07]}
{[%emt 00:00:15]} Ngf6 {[%clk 00:14:25]} {[%emt 00:00:27]} 8. O-O {[%clk
00:13:54]} {[%emt 00:00:17]} Be7 {[%clk 00:14:03]} {[%emt 00:00:27]} 9. d4
{[%clk 00:13:27]} {[%emt 00:00:33]} Nb6 {[%clk 00:12:49]} {[%emt 00:01:18]} 10.
Qb5+ {[%clk 00:12:50]} {[%emt 00:00:42]} Qd7 {[%clk 00:12:33]} {[%emt
00:00:22]} 11. Qxd7+ {[%clk 00:12:47]} {[%emt 00:00:08]} Nfxd7 {[%clk
00:11:24]} {[%emt 00:01:14]} 12. Be3 {[%clk 00:12:15]} {[%emt 00:00:36]} cxd4
{[%clk 00:10:40]} {[%emt 00:00:49]} 13. Bxd4 {[%clk 00:12:15]} {[%emt
00:00:05]} Bf6 {[%clk 00:10:40]} {[%emt 00:00:05]} 14. Nbd2 {[%clk 00:11:57]}
{[%emt 00:00:23]} O-O {[%clk 00:10:23]} {[%emt 00:00:22]} 15. Ne4 {[%clk
00:11:45]} {[%emt 00:00:16]} Bxd4 {[%clk 00:09:58]} {[%emt 00:00:30]} 16. Nxd4
{[%clk 00:11:46]} {[%emt 00:00:04]} e5 {[%clk 00:09:36]} {[%emt 00:00:27]} 17.
Nf5 {[%clk 00:11:32]} {[%emt 00:00:19]} Na4 {[%clk 00:07:57]} {[%emt 00:01:44]}
18. Rad1 {[%clk 00:10:48]} {[%emt 00:00:50]} Ndc5 {[%clk 00:05:50]} {[%emt
00:02:10]} 19. Nxc5 {[%clk 00:10:25]} {[%emt 00:00:29]} Nxc5 {[%clk 00:05:52]}
{[%emt 00:00:03]} 20. Rd5 {[%clk 00:10:28]} {[%emt 00:00:02]} Na4 {[%clk
00:04:07]} {[%emt 00:01:51]} 21. Rb5 {[%clk 00:09:10]} {[%emt 00:01:23]} b6
{[%clk 00:03:36]} {[%emt 00:00:36]} 22. Rb4 {[%clk 00:08:26]} {[%emt 00:00:49]}
Nc5 {[%clk 00:03:36]} {[%emt 00:00:04]} 23. Rd1 {[%clk 00:07:19]} {[%emt
00:01:12]} Rad8 {[%clk 00:03:17]} {[%emt 00:00:24]} 24. Ne7+ {[%clk 00:07:17]}
{[%emt 00:00:08]} Kh8 {[%clk 00:03:18]} {[%emt 00:00:04]} 25. Nd5 {[%clk
00:07:19]} {[%emt 00:00:03]} Rd7 {[%clk 00:02:30]} {[%emt 00:00:53]} 26. a4
{[%clk 00:04:21]} {[%emt 00:03:02]} e4 {[%clk 00:01:37]} {[%emt 00:00:59]} 27.
Rbd4 {[%clk 00:03:34]} {[%emt 00:00:51]} Rfd8 {[%clk 00:01:28]} {[%emt
00:00:14]} 28. Nc7 {[%clk 00:02:40]} {[%emt 00:00:59]} Rxd4 {[%clk 00:01:24]}
{[%emt 00:00:09]} 29. Rxd4 {[%clk 00:02:43]} {[%emt 00:00:03]} Rxd4 {[%clk
00:01:20]} {[%emt 00:00:08]} 30. cxd4 {[%clk 00:02:47]} {[%emt 00:00:02]} Nxa4
{[%clk 00:01:17]} {[%emt 00:00:08]} 31. d5 {[%clk 00:02:42]} {[%emt 00:00:10]}
Nc5 {[%clk 00:01:06]} {[%emt 00:00:15]} 32. d6 {[%clk 00:02:44]} {[%emt
00:00:04]} Kg8 {[%clk 00:01:07]} {[%emt 00:00:04]} 33. b4 {[%clk 00:02:46]}
{[%emt 00:00:03]} Nd7 {[%clk 00:01:07]} {[%emt 00:00:04]} 34. Kf1 {[%clk
00:02:36]} {[%emt 00:00:15]} Kf8 {[%clk 00:01:11]} {[%emt 00:00:02]} 35. Ke2
{[%clk 00:02:39]} {[%emt 00:00:02]} f5 {[%clk 00:01:14]} {[%emt 00:00:02]} 36.
Ke3 {[%clk 00:02:29]} {[%emt 00:00:14]} Ne5 {[%clk 00:00:22]} {[%emt 00:00:57]}
37. Kf4 {[%clk 00:01:21]} {[%emt 00:01:14]} Nc4 {[%clk 00:00:26]} {[%emt
00:00:01]} 38. Kxf5 {[%clk 00:01:08]} {[%emt 00:00:18]} Nxd6+ {[%clk 00:00:29]}
39. Ke5 {[%clk 00:01:10]} {[%emt 00:00:04]} Ke7 {[%clk 00:00:21]} {[%emt
00:00:12]} 40. Nd5+ {[%clk 00:00:49]} {[%emt 00:00:27]} Kd7 {[%clk 00:00:22]}
{[%emt 00:00:05]} 41. g4 {[%clk 00:00:42]} {[%emt 00:00:12]} b5 {[%clk
00:00:06]} {[%emt 00:00:21]} 42. h4 {[%clk 00:00:29]} {[%emt 00:00:17]} Kc6
{[%clk 00:00:10]} 43. Ne7+ {[%clk 00:00:18]} {[%emt 00:00:16]} Kd7 {[%clk
00:00:13]} {[%emt 00:00:02]} 44. Nf5 {[%clk 00:00:15]} {[%emt 00:00:07]} Kc6
{[%clk 00:00:15]} {[%emt 00:00:04]} 45. Nxd6 {[%clk 00:00:19]} {[%emt
00:00:02]} a5 {[%clk 00:00:15]} {[%emt 00:00:05]} 46. bxa5 {[%clk 00:00:18]}
{[%emt 00:00:05]} b4 {[%clk 00:00:17]} {[%emt 00:00:03]} 47. Nc4 {[%clk
00:00:21]} {[%emt 00:00:02]} 1-0

[Event "Lilla Elite Hotels Open 2024"]
[Site "Elite Stadshotellet, Kungsgatan 6, Vaxjo, Sweden"]
[Date "2024.02.09"]
[Round "2.2"]
[White "Zandler, Nils"]
[Black "Johansson, Sigge"]
[Result "0-1"]
[TimeControl "15 minutes + 5 seconds per move from move one (Round 1 - 4) / 90 minutes + 30 seconds per move from move one (Round 5 - 8)"]
[WhiteFideId "1781030"]
[BlackFideId "1742612"]
[WhiteElo "1371"]
[BlackElo "1577"]

1. d4 {[%clk 00:15:09]} e6 {[%clk 00:15:07]} {[%emt 00:00:03]} 2. Bf4 {[%clk
00:15:02]} {[%emt 00:00:12]} Nf6 {[%clk 00:15:10]} {[%emt 00:00:02]} 3. Nf3
{[%clk 00:15:04]} {[%emt 00:00:03]} d5 {[%clk 00:15:13]} {[%emt 00:00:02]} 4.
e3 {[%clk 00:14:59]} {[%emt 00:00:10]} Bd6 {[%clk 00:15:17]} {[%emt 00:00:02]}
5. Bg3 {[%clk 00:15:00]} {[%emt 00:00:03]} O-O {[%clk 00:15:19]} {[%emt
00:00:04]} 6. c3 {[%clk 00:14:47]} {[%emt 00:00:17]} c5 {[%clk 00:15:21]}
{[%emt 00:00:03]} 7. Nbd2 {[%clk 00:14:29]} {[%emt 00:00:24]} Nc6 {[%clk
00:15:24]} {[%emt 00:00:02]} 8. Bd3 {[%clk 00:13:44]} {[%emt 00:00:49]} cxd4
{[%clk 00:15:26]} {[%emt 00:00:04]} 9. exd4 {[%clk 00:13:44]} {[%emt 00:00:05]}
Re8 {[%clk 00:14:50]} {[%emt 00:00:40]} 10. Ne5 {[%clk 00:13:42]} {[%emt
00:00:07]} Qc7 {[%clk 00:14:04]} {[%emt 00:00:52]} 11. Ndf3 {[%clk 00:13:30]}
{[%emt 00:00:17]} Ne4 {[%clk 00:13:17]} {[%emt 00:00:50]} 12. Nxc6 {[%clk
00:11:41]} {[%emt 00:01:55]} bxc6 {[%clk 00:13:16]} {[%emt 00:00:07]} 13. Qc2
{[%clk 00:10:52]} {[%emt 00:00:53]} f5 {[%clk 00:10:42]} {[%emt 00:02:40]} 14.
Bxd6 {[%clk 00:10:26]} {[%emt 00:00:30]} Qxd6 {[%clk 00:10:45]} {[%emt
00:00:03]} 15. Ne5 {[%clk 00:10:01]} {[%emt 00:00:30]} c5 {[%clk 00:10:28]}
{[%emt 00:00:22]} 16. O-O {[%clk 00:09:30]} {[%emt 00:00:35]} Bb7 {[%clk
00:10:00]} {[%emt 00:00:34]} 17. f3 {[%clk 00:09:00]} {[%emt 00:00:35]} Nf6
{[%clk 00:09:37]} {[%emt 00:00:27]} 18. Rae1 {[%clk 00:08:48]} {[%emt
00:00:17]} Rac8 {[%clk 00:09:29]} {[%emt 00:00:14]} 19. Qf2 {[%clk 00:08:40]}
{[%emt 00:00:12]} cxd4 {[%clk 00:09:09]} {[%emt 00:00:25]} 20. cxd4 {[%clk
00:08:34]} {[%emt 00:00:11]} Ba6 {[%clk 00:09:11]} {[%emt 00:00:04]} 21. Bxa6
{[%clk 00:07:27]} {[%emt 00:01:12]} Qxa6 {[%clk 00:09:14]} {[%emt 00:00:02]} 22.
a3 {[%clk 00:07:16]} {[%emt 00:00:15]} Qa4 {[%clk 00:08:40]} {[%emt 00:00:39]}
23. Rc1 {[%clk 00:07:07]} {[%emt 00:00:14]} Nd7 {[%clk 00:07:58]} {[%emt
00:00:47]} 24. Nxd7 {[%clk 00:06:09]} {[%emt 00:01:03]} Qxd7 {[%clk 00:08:01]}
{[%emt 00:00:02]} 25. Qe3 {[%clk 00:05:32]} {[%emt 00:00:43]} Kf7 {[%clk
00:07:29]} {[%emt 00:00:37]} 26. b4 {[%clk 00:05:30]} {[%emt 00:00:07]} Rc4
{[%clk 00:07:07]} {[%emt 00:00:27]} 27. Rxc4 {[%clk 00:05:10]} {[%emt
00:00:24]} dxc4 {[%clk 00:07:10]} {[%emt 00:00:02]} 28. Rc1 {[%clk 00:05:10]}
{[%emt 00:00:05]} Rc8 {[%clk 00:07:13]} {[%emt 00:00:02]} 29. Rc3 {[%clk
00:05:00]} {[%emt 00:00:15]} Qd5 {[%clk 00:06:52]} {[%emt 00:00:26]} 30. Qe5
{[%clk 00:04:15]} {[%emt 00:00:50]} Qxe5 {[%clk 00:06:56]} {[%emt 00:00:02]} 31.
dxe5 {[%clk 00:04:18]} {[%emt 00:00:02]} f4 {[%clk 00:07:00]} 32. Kf2 {[%clk
00:04:18]} {[%emt 00:00:05]} Kg6 {[%clk 00:07:03]} 33. Ke2 {[%clk 00:04:18]}
{[%emt 00:00:06]} Kf5 {[%clk 00:07:06]} {[%emt 00:00:02]} 34. g3 {[%clk
00:03:56]} {[%emt 00:00:26]} g5 {[%clk 00:07:07]} {[%emt 00:00:04]} 35. a4
{[%clk 00:03:43]} {[%emt 00:00:19]} Kxe5 {[%clk 00:07:08]} {[%emt 00:00:04]} 36.
Rc1 {[%clk 00:03:13]} {[%emt 00:00:34]} Kd4 {[%clk 00:06:52]} {[%emt 00:00:21]}
37. gxf4 {[%clk 00:02:46]} {[%emt 00:00:33]} gxf4 {[%clk 00:06:56]} {[%emt
00:00:01]} 38. Kd2 {[%clk 00:02:04]} {[%emt 00:00:46]} Rg8 {[%clk 00:06:42]}
{[%emt 00:00:19]} 39. b5 {[%clk 00:01:20]} {[%emt 00:00:49]} Rg2+ {[%clk
00:06:43]} {[%emt 00:00:04]} 40. Ke1 {[%clk 00:01:22]} {[%emt 00:00:03]} Rg1+
{[%clk 00:06:10]} {[%emt 00:00:38]} 41. Kd2 {[%clk 00:01:26]} {[%emt 00:00:02]}
Rxc1 {[%clk 00:06:13]} {[%emt 00:00:02]} 42. Kxc1 {[%clk 00:01:29]} {[%emt
00:00:01]} Kc5 {[%clk 00:06:17]} 43. Kc2 {[%clk 00:01:24]} {[%emt 00:00:10]}
Kb4 {[%clk 00:06:20]} {[%emt 00:00:02]} 44. a5 {[%clk 00:01:13]} {[%emt
00:00:16]} Kxa5 {[%clk 00:06:23]} {[%emt 00:00:03]} 45. Kc3 {[%clk 00:01:16]}
{[%emt 00:00:02]} Kxb5 {[%clk 00:06:26]} {[%emt 00:00:01]} 0-1

[Event "Lilla Elite Hotels Open 2024"]
[Site "Elite Stadshotellet, Kungsgatan 6, Vaxjo, Sweden"]
[Date "2024.02.09"]
[Round "3.1"]
[White "Kampe, Victor"]
[Black "Lyngsjo, Luke"]
[Result "0-1"]
[TimeControl "15 minutes + 5 seconds per move from move one (Round 1 - 4) / 90 minutes + 30 seconds per move from move one (Round 5 - 8)"]
[WhiteFideId "1769936"]
[BlackFideId "1755811"]
[WhiteElo "1419"]
[BlackElo "1587"]

1. e4 {[%clk 00:15:08]} {[%emt 00:00:01]} e5 {[%clk 00:15:09]} {[%emt
00:00:02]} 2. Nf3 {[%clk 00:15:11]} {[%emt 00:00:01]} Nf6 {[%clk 00:15:12]}
{[%emt 00:00:02]} 3. Nc3 {[%clk 00:15:14]} {[%emt 00:00:02]} Bb4 {[%clk
00:15:16]} {[%emt 00:00:02]} 4. d3 {[%clk 00:15:18]} Nc6 {[%clk 00:15:15]}
{[%emt 00:00:05]} 5. Bd2 {[%clk 00:15:16]} {[%emt 00:00:07]} d5 {[%clk
00:14:56]} {[%emt 00:00:25]} 6. exd5 {[%clk 00:15:15]} {[%emt 00:00:06]} Nxd5
{[%clk 00:14:58]} {[%emt 00:00:02]} 7. Nxd5 {[%clk 00:14:59]} {[%emt 00:00:21]}
Bxd2+ {[%clk 00:15:00]} {[%emt 00:00:03]} 8. Qxd2 {[%clk 00:15:02]} {[%emt
00:00:03]} Qxd5 {[%clk 00:15:03]} {[%emt 00:00:02]} 9. Be2 {[%clk 00:14:57]}
{[%emt 00:00:10]} O-O {[%clk 00:14:48]} {[%emt 00:00:20]} 10. O-O {[%clk
00:14:48]} {[%emt 00:00:14]} Re8 {[%clk 00:14:39]} {[%emt 00:00:13]} 11. a3
{[%clk 00:13:53]} {[%emt 00:01:02]} Nd4 {[%clk 00:14:09]} {[%emt 00:00:34]} 12.
Nxd4 {[%clk 00:13:53]} {[%emt 00:00:04]} exd4 {[%clk 00:13:56]} {[%emt
00:00:19]} 13. Bf3 {[%clk 00:13:47]} {[%emt 00:00:11]} Qb5 {[%clk 00:13:38]}
{[%emt 00:00:23]} 14. Qb4 {[%clk 00:12:01]} {[%emt 00:01:51]} Qxb4 {[%clk
00:13:07]} {[%emt 00:00:37]} 15. axb4 {[%clk 00:12:03]} {[%emt 00:00:02]} c6
{[%clk 00:13:09]} {[%emt 00:00:03]} 16. Rfe1 {[%clk 00:11:22]} {[%emt
00:00:47]} Rxe1+ {[%clk 00:12:41]} {[%emt 00:00:32]} 17. Rxe1 {[%clk 00:11:23]}
{[%emt 00:00:03]} Be6 {[%clk 00:12:44]} {[%emt 00:00:03]} 18. b3 {[%clk
00:11:20]} {[%emt 00:00:09]} Kf8 {[%clk 00:11:54]} {[%emt 00:00:55]} 19. Kf1
{[%clk 00:11:14]} {[%emt 00:00:11]} Rd8 {[%clk 00:11:02]} {[%emt 00:00:56]} 20.
Ra1 {[%clk 00:10:32]} {[%emt 00:00:47]} a6 {[%clk 00:10:45]} {[%emt 00:00:23]}
21. Ra5 {[%clk 00:10:28]} {[%emt 00:00:09]} Ke7 {[%clk 00:09:43]} {[%emt
00:01:07]} 22. Ke2 {[%clk 00:10:22]} {[%emt 00:00:10]} h6 {[%clk 00:09:32]}
{[%emt 00:00:17]} 23. h3 {[%clk 00:09:36]} {[%emt 00:00:51]} Bd5 {[%clk
00:08:25]} {[%emt 00:01:12]} 24. Bxd5 {[%clk 00:09:34]} {[%emt 00:00:07]} Rxd5
{[%clk 00:08:29]} {[%emt 00:00:01]} 25. Rxd5 {[%clk 00:09:35]} {[%emt
00:00:05]} cxd5 {[%clk 00:08:33]} {[%emt 00:00:01]} 26. Kf3 {[%clk 00:09:34]}
{[%emt 00:00:05]} Kd6 {[%clk 00:07:23]} {[%emt 00:01:15]} 27. Kf4 {[%clk
00:09:29]} {[%emt 00:00:10]} g6 {[%clk 00:07:18]} {[%emt 00:00:10]} 28. h4
{[%clk 00:09:28]} {[%emt 00:00:06]} Ke6 {[%clk 00:07:03]} {[%emt 00:00:21]} 29.
g4 {[%clk 00:08:47]} {[%emt 00:00:46]} f5 {[%clk 00:06:06]} {[%emt 00:01:02]}
30. g5 {[%clk 00:06:15]} {[%emt 00:02:36]} h5 {[%clk 00:06:06]} {[%emt
00:00:05]} 31. Kg3 {[%clk 00:06:14]} {[%emt 00:00:06]} Ke5 {[%clk 00:06:00]}
{[%emt 00:00:11]} 32. Kf3 {[%clk 00:04:43]} {[%emt 00:01:36]} f4 {[%clk
00:03:59]} {[%emt 00:02:06]} 33. Ke2 {[%clk 00:04:10]} {[%emt 00:00:38]} Kf5
{[%clk 00:03:56]} {[%emt 00:00:08]} 34. f3 {[%clk 00:04:05]} {[%emt 00:00:11]}
Ke5 {[%clk 00:04:00]} 35. Kd2 {[%clk 00:04:02]} {[%emt 00:00:06]} Kd6 {[%clk
00:03:54]} {[%emt 00:00:12]} 36. Kc1 {[%clk 00:03:31]} {[%emt 00:00:37]} Kc6
{[%clk 00:03:54]} {[%emt 00:00:04]} 37. Kb2 {[%clk 00:03:31]} {[%emt 00:00:04]}
Kb5 {[%clk 00:03:58]} {[%emt 00:00:02]} 38. Ka3 {[%clk 00:03:32]} {[%emt
00:00:01]} b6 {[%clk 00:04:00]} {[%emt 00:00:05]} 39. Ka2 {[%clk 00:03:29]}
{[%emt 00:00:08]} Kxb4 {[%clk 00:04:04]} {[%emt 00:00:02]} 40. Kb2 {[%clk
00:03:29]} {[%emt 00:00:05]} b5 {[%clk 00:04:07]} {[%emt 00:00:02]} 0-1